Cogmind - Beta 14 @@@ ROGUE MODE // 2025.03.12 @ 17:38:06 Player: Skergy Result: Destroyed by Y9-SKE(R) with Subdweller Laser Performance ------------- Evolutions (0) 0 Regions Visited (2) 400 Robots Destroyed (20) 100 Value Destroyed (724) 724 Prototype IDs (0) 0 Alien Tech Used (0) 0 Bonus (0) 0 TOTAL SCORE: 1224 Bonus ------- None Cogmind --------- Core Integrity 0/250 Matter 120/300 Energy 100/100 System Corruption 0% Temperature Cool (6) Movement Rolling (110) Location -10/Subcaves Parts ------- > --- POWER (1) -------- Subdweller Power Source > --- PROPULSION (2) --- Light Treads Subdweller Monowheel > --- UTILITY (2) ------ (None) > --- WEAPON (2) ------- Subdweller Machine Gun > --- INVENTORY (5) ---- Subdweller Optics Subdweller Machine Gun Makeshift Hammer Peak State ------------ > --- POWER ------------ Subdweller Power Source > --- PROPULSION ------- Light Treads Subdweller Monowheel > --- UTILITY ---------- Scrap Shield > --- WEAPON ----------- Subdweller Machine Gun Makeshift Hammer > --- INVENTORY -------- Subdweller Monowheel Subdweller Optics Seismic Detector Battle Cannon Subdweller Shrapnel Launcher [Rating: 15] Favorites ----------- Power Light Ion Engine Engine Light Ion Engine Propulsion Light Treads Treads Light Treads Wheel Subdweller Monowheel Utility Small Storage Unit Device Seismic Detector Storage Small Storage Unit Protection Scrap Shield Weapon Battle Cannon Energy Gun Small Laser Ballistic Gun Light Assault Rifle Ballistic Cannon Battle Cannon Launcher Grenade Launcher Special Weapon Mining Laser Impact Weapon Makeshift Hammer Build | -11 -10 -10 ------- Run | Yrd Mat Sub Slots Evolved . | . . . Power . | . . . Propulsion . | . . . Utility . | . . . Weapon . | . . . Parts Attached 35 | 6 5 24 Power 5 | 1 2 2 Engine 5 | 1 2 2 Core . | . . . Reactor . | . . . Propulsion 6 | 2 2 2 Treads 2 | . 2 . Leg . | . . . Wheel 4 | 2 . 2 Hover . | . . . Flight . | . . . Utility 3 | 1 1 1 Device 1 | . 1 . Storage 1 | 1 . . Processor . | . . . Hackware . | . . . Protection 1 | . . 1 Artifact . | . . . Weapon 21 | 2 . 19 Energy Gun 2 | 1 . 1 Energy Cannon . | . . . Ballistic Gun 4 | 1 . 3 Ballistic Cannon 2 | . . 2 Launcher 7 | . . 7 Special Weapon 5 | . . 5 Impact Weapon 1 | . . 1 Slashing Weapon . | . . . Piercing Weapon . | . . . Special Melee Weapon . | . . . Unidentified Prototypes . | . . . Parts Lost 6 | . . 6 Power 1 | . . 1 Propulsion 1 | . . 1 Utility 1 | . . 1 Weapon 3 | . . 3 Highest Loss Streak 3 | . . 3 To Critical Strikes . | . . . Average Slot Usage (%) 87 | . 97 84 Engine 11 | . 14 10 Treads 19 | . 16 20 Wheel 5 | . 11 3 Device 7 | . 12 6 Storage 8 | . 14 6 Protection 5 | . . 7 Energy Gun 4 | . 14 1 Ballistic Gun 8 | . 14 7 Ballistic Cannon 7 | . . 10 Launcher 5 | . . 7 Special Weapon 1 | . . 2 Peak Build Rating 15 | 6 8 15 Average Rating 9 | 4 6 9 On Entrance 4 | . 6 7 Naked Turns . | . . . Heaviest Build 35 | 12 13 35 Greatest Support 40 | 26 40 40 Greatest Overweight (x) 1 | . . 1 Average Overweight (x) . | . . . Largest Inventory Capacity 8 | 8 8 8 Average Capacity 6 | 7 8 6 Most Carried 8 | 6 8 8 Average Carried 6 | 3 6 6 Final Capacity 8 | 8 8 5 Final Carried 6 | 6 6 3 Class Distribution -------------------- 78% | Mutant 21% | Subdweller-Mutant Dominant Class ---------------- Mutant | -10/Materials Mutant | -10/Subcaves Resources | -11 -10 -10 ----------- Run | Yrd Mat Sub Matter Collected 762 | 239 90 433 Remotely . | . . . Salvage Created 522 | . 224 298 Parts 39 | . 21 18 Haulers Intercepted . | . . . Recyclers Shooed . | . . . Parts Field Recycled . | . . . Retrieved Matter . | . . . Parts Self-Destructed 7 | . . 7 Prevented . | . . . Kills | -11 -10 -10 ------- Run | Yrd Mat Sub Combat Hostiles Destroyed 20 | . 7 13 Guns 9 | . 7 2 Cannons 2 | . . 2 AOE 9 | . . 9 Classes Destroyed 4 | . 2 2 Swarmer 3 | . 3 . Grunt 5 | . 4 1 Sentry 1 | . . 1 Subdweller 11 | . . 11 Best Kill Streak 5 | . 5 2 Combat Bots Only 5 | . 5 2 Max Kills in Single Turn 1 | . 1 1 Gunslinging . | . . . Exploded 1 | . . 1 Melee . | . . . Uniques/NPCs Destroyed . | . . . Combat | -11 -10 -10 -------- Run | Yrd Mat Sub Hostile Shots Fired 105 | . 38 67 Missed 23 | . 7 16 Damage Taken 1495 | . 319 1176 Core 265 | . 110 155 Absorbed by Shields . | . . . Core Remaining (%) 100 | 100 . . Volleys Fired 78 | . 19 59 Largest 2 | . 2 2 Hottest 100 | . 60 100 Shots Fired 125 | . 38 87 Gun 63 | . 38 25 Cannon 26 | . . 26 Launcher 18 | . . 18 Special 18 | . . 18 Kinetic 73 | . 19 54 Thermal 40 | . 19 21 Explosive 12 | . . 12 Electromagnetic . | . . . Robot Hit Streak 10 | . 7 10 Robot Miss Streak 5 | . 5 2 Penetration Max . | . . . Secondary Targets 1 | . 1 . Max Gunslinging Chain 1 | . 1 . Shots Hit Robots 77 | . 24 53 Core Hits 37 | . 15 22 Critical Kills . | . . . Critical Parts Destroyed . | . . . Critical Strikes 1 | . . 1 Blast 1 | . . 1 Melee Attacks . | . . . Impact . | . . . Slashing . | . . . Piercing . | . . . Sneak Attacks . | . . . Combat Hostiles . | . . . Follow-up Attacks . | . . . Damage Inflicted 2019 | . 230 1789 Guns 484 | . 230 254 Cannons 432 | . . 432 Explosions 1103 | . . 1103 Melee . | . . . Ramming . | . . . Kinetic 1175 | . 107 1068 Thermal 175 | . 123 52 Explosive 669 | . . 669 Electromagnetic . | . . . Impact . | . . . Slashing . | . . . Piercing . | . . . Highest Corruption . | . . . Average Corruption . | . . . Corruption Purged . | . . . Corruption Blocked . | . . . Overload Shots . | . . . Overflow Damage 12 | . . 12 Projectiles . | . . . Explosions 12 | . . 12 Melee . | . . . Knockbacks 4 | . . 4 Impact . | . . . Kinetic 4 | . . 4 Secondary . | . . . Self-Inflicted Damage 119 | . . 119 Shots 4 | . . 4 Rammed . | . . . Targets Rammed . | . . . Kicked . | . . . Crushed . | . . . Highest Temperature 156 | . 156 4 Average Temperature 64 | . 68 3 Received Heat Transfer 300 | . 120 180 Siege Activations . | . . . Robots Corrupted . | . . . Combat Hostiles . | . . . Parts Fried . | . . . Impact Corruptions . | . . . Robots Melted . | . . . Combat Hostiles . | . . . Parts Melted . | . . . Heat Transferred 386 | . 275 111 Parts Sabotaged . | . . . Parts Stolen . | . . . Parts Stripped . | . . . Power Chain Reactions . | . . . Alert | -11 -10 -10 ------- Run | Yrd Mat Sub Peak Influence 172 | . 172 . Initial . | . . . Average 102 | . 113 . Maximum Alert Level . | . . . Low Security (%) 100 | 100 100 . Level 1 . | . . . Level 2 . | . . . Level 3 . | . . . Level 4 . | . . . Level 5 . | . . . High Security . | . . . Max Security . | . . . Squads Dispatched 2 | . 2 . Investigation 1 | . 1 . Extermination . | . . . Reinforcement 1 | . 1 . Assault . | . . . Garrison . | . . . Intercept . | . . . Searches Triggered . | . . . Construction Impeded . | . . . Haulers Reinforced . | . . . Active Scanning Responses . | . . . Cargo Convoy Interrupts . | . . . Stealth | -11 -10 -10 --------- Run | Yrd Mat Sub Distress Signals . | . . . Communications Jammed . | . . . Distress Signals . | . . . Times Spotted 26 | . 9 17 Peak Tracking Total 4 | . 3 4 Tactical Retreats . | . . . Traps | -11 -10 -10 ------- Run | Yrd Mat Sub Traps Triggered 1 | . 1 . Indirectly . | . . . Trap Hack Attempts . | . . . Triggered . | . . . Disarmed . | . . . Reprogrammed . | . . . Reused . | . . . Traps Extracted . | . . . Installed . | . . . Triggered . | . . . Machines | -11 -10 -10 ---------- Run | Yrd Mat Sub Machines Disabled . | . . . Max in Single Turn . | . . . Machines Repaired . | . . . Machines Dismantled . | . . . Machines Sabotaged . | . . . Overloaded Fab Kills . | . . . Hacking | -11 -10 -10 --------- Run | Yrd Mat Sub Machines Accessed 3 | . 3 . Terminals 2 | . 2 . Fabricators . | . . . Repair Stations . | . . . Recycling Units 1 | . 1 . Scanalyzers . | . . . Garrison Access . | . . . Total Hacks 9 | . 9 . Successful 3 | . 3 . Failed 6 | . 6 . Catastrophic . | . . . Database Lockouts . | . . . Manual 5 | . 5 . Terminals 8 | . 8 . Fabricators . | . . . Repair Stations . | . . . Recycling Units 1 | . 1 . Scanalyzers . | . . . Garrison Access . | . . . Terminal Hacks 1 | . 1 . Recall Investigation 1 | . 1 . Fabricator Hacks . | . . . Repair Station Hacks . | . . . Recycling Unit Hacks . | . . . Scanalyzer . | . . . Garrison Access Hacks . | . . . Unauthorized Hacks 2 | . 2 . Terminals 1 | . 1 . Botnet 1 | . 1 . Fabricators . | . . . Repair Stations . | . . . Recycling Units 1 | . 1 . Reject 1 | . 1 . Scanalyzers . | . . . Garrison Access . | . . . Data Cores Recovered . | . . . Used . | . . . Hacking Detections 2 | . 2 . Full Trace Events . | . . . Feedback Events . | . . . Feedback Blocked . | . . . Robot Schematics Acquired . | . . . Robots Built . | . . . Authchips . | . . . Time . | . . . Total Robot Build Rating . | . . . Part Schematics Acquired . | . . . Parts Built . | . . . Authchips . | . . . Time . | . . . Total Part Build Rating . | . . . Parts Repaired . | . . . Time . | . . . Parts Recycled . | . . . Recycled Matter . | . . . Retrieved Matter . | . . . Retrieved Components . | . . . Parts Scanalyzed . | . . . Part Schematics Acquired . | . . . Parts Damaged . | . . . Bothacking | -11 -10 -10 ------------ Run | Yrd Mat Sub Used RIF Installer . | . . . Robots Hacked . | . . . Non-combat . | . . . Combat . | . . . Robot Hacks Applied . | . . . Relay Couplers Released . | . . . Fabnet Peak Effective % . | . . . Robots Rewired . | . . . Allies Hacked . | . . . Hacks Repelled . | . . . Allies | -11 -10 -10 -------- Run | Yrd Mat Sub Total Allies . | . . . Largest Group . | . . . Highest-Rated Group . | . . . Highest-Rated Ally . | . . . Total Orders . | . . . Ally Attacks . | . . . Total Damage . | . . . Kills . | . . . Allies Corrupted . | . . . Allies Melted . | . . . Intel | -11 -10 -10 ------- Run | Yrd Mat Sub Robot Analysis Total . | . . . Derelict Logs Recovered 1 | . . 1 Drone Launches . | . . . Drone Recoveries . | . . . Exploration | -11 -10 -10 ------------- Run | Yrd Mat Sub Turns Passed 1885 | 45 437 1403 Spaces Moved 944 | 35 180 729 Core 1 | 1 . . Treads 508 | . 54 454 Legs . | . . . Wheels 435 | 34 126 275 Hover . | . . . Flight . | . . . Fastest Speed 50 | 50 90 120 Average Speed 145 | 88 111 156 Slowest Speed 240 | 90 160 240 Overloaded Moves . | . . . Propulsion Burnouts . | . . . Robots Hopped . | . . . Cave-ins Triggered . | . . . Exploration Rate (%) 29 | 4 32 51 Regions Visited 2 Branch Regions 1 Pre-discovered Areas 2 | . . 2 Known Exits Taken . | . . . Unknown Exits Taken 2 | 1 1 . Scrap Searched 5 | . . 5 Spaces Dug 13 | . . 13 Terrain Destroyed 99 | . . 99 Melee . | . . . Projectile 14 | . . 14 AOE 85 | . . 85 Terrain Rammed . | . . . Walls Destroyed . | . . . Machines Disabled . | . . . Actions | -11 -10 -10 --------- Run | Yrd Mat Sub Total 1300 | 46 387 867 Wait 198 | . 173 25 Move 942 | 34 179 729 Hop . | . . . Pick Up 22 | 6 5 11 Fast Attach 11 | 6 1 4 Attach 7 | . 3 4 Detach 1 | . . 1 Swap 17 | . 1 16 Drop 19 | . 6 13 Fire 78 | . 19 59 Melee . | . . . Ram . | . . . Kick . | . . . Crush . | . . . Escape Stasis . | . . . Rewire . | . . . Trap . | . . . Miscellaneous 5 | . . 5 Route ------- -11/Scrapyard -10/Materials (discovered 2 exits: [*Min] / [*Sub]) -10/Subcaves (discovered 1 exit: [*Mat]) History --------- Turn | Location | Event 16 | -11/Scrapyard | Discovered new exit (range 15) 46 | -11/Scrapyard | Entered Materials 154 | -10/Materials | Discovered new exit (range 16) 302 | -10/Materials | Build established: Mutant 465 | -10/Materials | Discovered new exit (range 8) 483 | -10/Materials | Entered Subcaves 492 | -10/Subcaves | Learned location of Zion (-7) 492 | -10/Subcaves | Met a Zionite searching for "candidates" 850 | -10/Subcaves | Shifting Twisted Machinery released Scrap Shield 871 | -10/Subcaves | Shifting Twisted Machinery released Sub. Laser 1065 | -10/Subcaves | A swath of the cavern ceiling suddenly collapsed 1155 | -10/Subcaves | Lost 3 parts (1p1n1w) 1449 | -10/Subcaves | Ambushed by Subdweller buried in earth 1452 | -10/Subcaves | Core integrity fell below 50% 1576 | -10/Subcaves | A swath of the cavern ceiling suddenly collapsed 1583 | -10/Subcaves | Shifting Twisted Machinery released Mak. Hammer 1675 | -10/Subcaves | Shifting Twisted Machinery released Scrap Shield 1768 | -10/Subcaves | Build established: Subdweller-Mutant 1854 | -10/Subcaves | Discovered new exit (range 5) 1878 | -10/Subcaves | Ambushed by Subdweller buried in earth 1878 | -10/Subcaves | Ambushed by Subdweller buried in earth 1879 | -10/Subcaves | Core integrity fell below 20% 1881 | -10/Subcaves | Ambushed by Subdweller buried in earth 1886 | -10/Subcaves | Destroyed by Y9-SKE(R) with Subdweller Laser Last Messages --------------- 01640_ Acquired 5 matter. 01641_ Acquired 4 matter. Scrap Shield falls loose from the Twisted Machinery. 01707_ Sub. Power Source shoots sparks and powers down. 01747_ Dropped Broken Sub. Power Source. 01748_ Acquired 45 matter. 01771_ Sub. Monowheel shoots sparks and powers down. 01772_ Dropped Broken Sub. Monowheel. 01850_ Sub. Power Source shoots sparks and powers down. 01854_ EXIT=FOUND 01863_ Sub. Machine Gun shoots sparks and powers down. 01873_ K9-9UD(R) Sub. Power Source blasted off. 01873_ Battle Cannon destroyed. 01878_ K9-9UD(R) destroyed. 01879_ N2-8UG(R): "ARGHSUB!" 01879_ Y9-SKE(R): "ARGHSUB!" 01882_ B2-LTT(R): "THANKSYOU!" 01884_ Sub. Shrapnel Launcher destroyed. 01884_ Destroyed Sub. Shrapnel Launcher. 01884_ Scrap Shield destroyed. Map ----- +----------------------------------------------------+ | ?????????????????????????????????????????????????? | | ?????????????????????????????????????????????????? | | ?????????????????????????????????????????????????? | | ?????????????????????????????????????????????????? | | ?????????????????????????????????????????????????? | | ?????????????????????????????????????????????????? | | ?????????????????????????????????????????????????? | | ?????????????????????????????????????????????????? | | ?????????????????????????????????????????????????? | | ?????????????????????????????????????????????????? | | ?????????????????????????????????????????????????? | | ?????????????????????????????????????????????????? | | ?????????????????????????????????????????????????? | | ?????????????????????????????????????????????????? | | ?????????????????????????????????????????????????? | | ??????????????????????????????????????? ?????????? | | ?????????????????????????????????????? ?????????? | | ?????????????????????????????????????? #????? ?? | | ???????????? ????????????????????????? ##??? ? | | ???????????? ???????????????????????? ##?# ?? | | ????????????""""??????????##?????????? ## ? | | ??????????""""" ???###### ###?#?????? ?? | | ?????????#" #### # # #??????# ???? | | ?????????"" #??##### ?????? | | ??????????" R #### # #???????? | | ??????????????# @ ## ##??????? | | ??????????????# * R R ;# #?????## | | ??????????????# < % ;; #????# | | ??????????????# ;; ;; #???# | | ??????????????## ;; ;; ## #### | | ??????????????#"" #### R ## | | ?????????????" #"????##" ##### | | ????????????""????? """" ## ##???# | | ??????????????????? ##"" #####????## | | ?????????????????????#" ##?????????# | | ????????????????????" "#??????????## | | ??????????????????? #???????????# ## #### | | ?????????????????? ####????????????# ### ##?? | | ?????????????????? #????????????????## #### ##? | | ????????????????? ?????????????????####### #? | | ????????????????#??????????????????# ### | | ???????????????????????????????????# ### | | ???????????????????????????????????# | | ???????????????????????????????????## | | ????????????????????????????????????### | | ??????????????????????????????????????### | | ????????????????????????????????????????# | | ??????????????????????????????????????# ## | | ??????????????????????????????????????# ## | | ??????????????????????????????????????## ##### ## | +----------------------------------------------------+ Best States ------------- Heat Dissipation 25 Energy Generation 15 Energy Capacity 250 Matter Stores 300 Matter Capacity 300 Sight Range 16 Terrain Scan Density 10 Armor Coverage 800 Evasion (%) 42 Recoil Reduction 2 Item Schematics ----------------- None Robot Schematics ------------------ None Fabricated ------------ Nothing Alien Tech Used ----------------- None Achievements -------------- None Challenges ------------ None Game ------ Seed ReactionSubatomicSword Manual? 0 Play Time 00:18:43 Cumulative 67.6 hours Start 2025.03.12 @ 17:21:30 End 2025.03.12 @ 17:38:06 Sessions 1 Manual Loads 0 Difficulty Rogue Special Mode None Game No. 72 Rogue 72 Adventurer 0 Explorer 0 Win Type - Total 2 Types 2/0/0/0/0/0/0/0/0 Lore% 40 Gallery% 43 Achievement% 39 Wizard Run 0 Options --------- Layout 0 ASCII 0 Keyboard 1 Movement Numpad Keybinds 0 Fullscreen 1 Font 24/Terminus Map View 76x50 Zoom Use 0% Tactical HUD 1 Map Filters NONE Filters NONE Steam 1 RUN: 4b1ca6f3-3438-4ff7-ba77-e6e7e892cb8f